fUSD/lending_fUSD_20260703
["ID","MTS","AMOUNT","RATE_DAILY","PERIOD"]
[426915835,1783012240000,-225.734964,0.000255,2]
[426915838,1783012240000,-188.93988,0.000255,2]
[426915837,1783012240000,-188.93987,0.000255,2]
[426915840,1783012240000,-188.93988,0.000255,2]
[426915843,1783012240000,-914.21147,0.000255,2]
[426915858,1783012240000,-205.326278,0.000255,2]
[426915845,1783012240000,-914.21147,0.000255,2]
[426915842,1783012240000,-188.93988,0.000255,2]
[426915844,1783012240000,-914.21147,0.000255,2]
[426915846,1783012240000,-914.21147,0.000255,2]
[426915847,1783012240000,-914.21147,0.000255,2]
[426915849,1783012240000,-914.21147,0.000255,2]
[426915848,1783012240000,-914.21147,0.000255,2]
[426915850,1783012240000,-914.21147,0.000255,2]
[426915851,1783012240000,-641.943131,0.000255,2]
[426915853,1783012240000,-641.943131,0.000255,2]
[426915852,1783012240000,-641.943131,0.000255,2]
[426915855,1783012240000,-205.326278,0.000255,2]
[426915856,1783012240000,-205.326278,0.000255,2]
[426915839,1783012240000,-188.93988,0.000255,2]
[426915887,1783012240000,-151.0,0.000258,2]
[426915928,1783012240000,-160.0,0.00025913,2]
[426915888,1783012240000,-159.12831,0.000258,2]
[426915922,1783012240000,-169.00435228,0.00025876,2]
[426915925,1783012240000,-368.6608352,0.000259,2]
[426915921,1783012240000,-682.86948518,0.00025876,2]
[426915924,1783012240000,-1071.70154692,0.000259,2]
[426915929,1783012240000,-160.0,0.00025913,2]
[426915927,1783012240000,-3700.0,0.000259,9]
[426915923,1783012240000,-10747.58822656,0.000259,2]
[426915926,1783012240000,-281.06169453,0.000259,2]
[426915931,1783012240000,-6918.32858138,0.00025992,2]
[426915932,1783012240000,-1137.03976482,0.00026,2]
[426915930,1783012240000,-613.71456904,0.0002599,2]
[426915934,1783012240000,-200.0,0.00026,2]
[426915920,1783012240000,-212.378489,0.000258,2]
[426915933,1783012240000,-4619.42255365,0.00026,2]
[426915937,1783012240000,-302.0,0.00026,2]
[426915936,1783012240000,-158.0,0.00026,2]
[426915939,1783012240000,-328.0,0.00026,2]
[426915938,1783012240000,-258.0,0.00026,2]
[426915940,1783012240000,-200.0,0.00026013,2]
[426915943,1783012240000,-1029.0,0.000261,2]
[426915942,1783012240000,-276.91289056,0.0002605,2]
[426915944,1783012240000,-258.0,0.000261,2]
[426915946,1783012240000,-740.0,0.000261,2]
[426915945,1783012240000,-7388.0,0.000261,2]
[426915947,1783012240000,-682.86948518,0.0002615,2]
[426915889,1783012240000,-151.0,0.000258,2]
[426915935,1783012240000,-712.19774754,0.00026,2]
[426915919,1783012240000,-270.200615,0.000258,2]
[426915941,1783012240000,-6200.01418143,0.00026036,2]
[426915916,1783012240000,-205.326278,0.000258,2]
[426915891,1783012240000,-151.0,0.000258,2]
[426915918,1783012240000,-151.0,0.000258,2]
[426915890,1783012240000,-151.0,0.000258,2]
[426915897,1783012240000,-150.0,0.000258,2]
[426915899,1783012240000,-354.998039,0.000258,2]
[426915892,1783012240000,-151.0,0.000258,2]
[426915894,1783012240000,-151.0,0.000258,2]
[426915895,1783012240000,-151.0,0.000258,2]
[426915896,1783012240000,-151.0,0.000258,2]
[426915893,1783012240000,-151.0,0.000258,2]
[426915901,1783012240000,-354.998039,0.000258,2]
[426915902,1783012240000,-225.734964,0.000258,2]
[426915900,1783012240000,-225.734964,0.000258,2]
[426915898,1783012240000,-225.734964,0.000258,2]
[426915905,1783012240000,-354.998039,0.000258,2]
[426915917,1783012240000,-205.326278,0.000258,2]
[426915914,1783012240000,-205.326278,0.000258,2]
[426915904,1783012240000,-225.734964,0.000258,2]
[426915915,1783012240000,-205.326278,0.000258,2]
[426915913,1783012240000,-641.943131,0.000258,2]
[426915910,1783012240000,-641.943131,0.000258,2]
[426915912,1783012240000,-641.943131,0.000258,2]
[426915908,1783012240000,-914.21147,0.000258,2]
[426915909,1783012240000,-914.21147,0.000258,2]
[426915907,1783012240000,-914.21147,0.000258,2]
[426915906,1783012240000,-914.21147,0.000258,2]
[426915903,1783012240000,-354.998039,0.000258,2]
[426915911,1783012240000,-641.943131,0.000258,2]
[426915970,1783012241000,-281.06169453,0.000264,2]
[426915972,1783012241000,-169.00435228,0.00026424,2]
[426915975,1783012241000,-200.0,0.00026535,2]
[426915973,1783012241000,-352.34869005,0.00026456,3]
[426915974,1783012241000,-152.0,0.0002649,3]
[426915976,1783012241000,-155.94951087,0.00026587,2]
[426915977,1783012241000,-2857.11,0.00026591,2]
[426915981,1783012241000,-9999.99,0.00026591,2]
[426915980,1783012241000,-4320.08,0.00026591,20]
[426915979,1783012241000,-1337.62,0.00026591,2]
[426915982,1783012241000,-150.0,0.00026641,2]
[426915983,1783012241000,-6647.41937541,0.00026647,7]
[426915985,1783012241000,-10747.58822656,0.000267,2]
[426915984,1783012241000,-682.86948518,0.00026698,2]
[426915971,1783012241000,-682.86948518,0.00026424,2]
[426915987,1783012241000,-368.6608352,0.000267,2]
[426915978,1783012241000,-9999.99,0.00026591,2]
[426915969,1783012241000,-368.6608352,0.000264,2]
[426915956,1783012241000,-10747.58822656,0.000262,2]
[426915968,1783012241000,-1071.70154692,0.000264,2]
[426915949,1783012241000,-157.58409467,0.00026161,2]
[426915948,1783012241000,-229.83099309,0.00026161,2]
[426915951,1783012241000,-153.79016857,0.00026161,2]
[426915950,1783012241000,-409.28797525,0.00026161,2]
[426915954,1783012241000,-160.87875912,0.00026161,2]
[426915953,1783012241000,-165.23013916,0.00026161,2]
[426915955,1783012241000,-325.71452455,0.00026165,2]
[426915986,1783012241000,-1071.70154692,0.000267,2]
[426915967,1783012241000,-10747.58822656,0.000264,2]
[426915957,1783012241000,-1071.70154692,0.000262,2]
[426915958,1783012241000,-368.6608352,0.000262,2]
[426915962,1783012241000,-350.0,0.00026322,2]
[426915960,1783012241000,-200.0,0.00026273,2]
[426915963,1783012241000,-6918.32858138,0.00026346,2]
[426915965,1783012241000,-290.8879801,0.00026397,2]
[426915966,1783012241000,-28083.93966186,0.000264,2]
[426915964,1783012241000,-293.47699182,0.00026397,2]
[426915961,1783012241000,-151.0,0.00026301,2]
[426915959,1783012241000,-281.06169453,0.000262,2]
[426915988,1783012241000,-225.734964,0.000267,2]
[426916002,1783012241000,-205.326278,0.000267,2]
[426915991,1783012241000,-354.998039,0.000267,2]
[426916012,1783012241000,-914.21147,0.00026799,2]
[426916015,1783012241000,-914.21146255,0.00026799,2]
[426916014,1783012241000,-914.21147,0.00026799,2]
[426916016,1783012241000,-1000.0,0.00026799,2]
[426916018,1783012241000,-1000.0,0.00026799,2]
[426916020,1783012241000,-500.0,0.00026799,2]
[426916019,1783012241000,-500.0,0.00026799,2]
[426916021,1783012241000,-500.0,0.00026799,2]
[426916024,1783012241000,-2690023.52418969,0.000268,2]
[426916025,1783012241000,-949.25422182,0.000268,2]
[426916022,1783012241000,-300.0,0.00026799,10]
[426916023,1783012241000,-300.0,0.00026799,10]
[426916027,1783012241000,-5057.84648012,0.000268,2]
[426916026,1783012241000,-20000.0,0.000268,2]
[426916028,1783012241000,-9416.21968255,0.000268,2]
[426916029,1783012241000,-286.0504492,0.000268,2]
[426915952,1783012241000,-311.66058802,0.00026161,2]
[426916011,1783012241000,-151.0,0.00026799,2]
[426915989,1783012241000,-354.998039,0.000267,2]
[426916007,1783012241000,-150.7194063,0.000267,2]
[426916010,1783012241000,-216.69616408,0.00026798,2]
[426915992,1783012241000,-225.734964,0.000267,2]
[426915990,1783012241000,-225.734964,0.000267,2]
[426915993,1783012241000,-354.998039,0.000267,2]
[426915994,1783012241000,-225.734955,0.000267,2]
[426915996,1783012241000,-281.06169453,0.000267,2]
[426915995,1783012241000,-354.998035,0.000267,2]
[426915997,1783012241000,-6918.32858138,0.000267,2]
[426915998,1783012241000,-641.943131,0.000267,2]
[426916001,1783012241000,-641.943123,0.000267,2]
[426915999,1783012241000,-641.943131,0.000267,2]
[426916000,1783012241000,-641.943131,0.000267,2]
[426916004,1783012241000,-205.326278,0.000267,2]
[426916003,1783012241000,-205.326278,0.000267,2]
[426916008,1783012241000,-350.0,0.00026752,4]
[426916009,1783012241000,-160.0,0.00026798,2]
[426916005,1783012241000,-205.326282,0.000267,2]
[426916006,1783012241000,-276.91289056,0.000267,2]
[426916013,1783012241000,-914.21147,0.00026799,2]
[426916017,1783012241000,-1000.0,0.00026799,2]
[426916047,1783012242000,-1736.35292236,0.00021081,2]
[426916048,1783012243000,-6336.08491221,0.00021081,2]
[426916049,1783012243000,-708.99194329,0.00021081,2]
[426916058,1783012245000,-9017.25191807,0.000268,2]
[426916057,1783012245000,-318.94065911,0.00024838,2]
[426916056,1783012245000,-966.57529755,0.00021081,2]
[426916059,1783012246000,-2830.17078406,0.000268,2]
[426916068,1783012282000,-1090.43,0.00016483,2]
[426916069,1783012302000,-247.78,0.00016483,2]
[426916071,1783012403000,461.212,0.0001611,2]
[426916075,1783012571000,-250.0,0.00016211,2]
[426916074,1783012571000,-47.788,0.0001611,2]
[426916077,1783012586000,-2468.732,0.00016311,2]
[426916079,1783012637000,-74.02080405,0.00016311,2]
[426916080,1783012637000,-1090.426,0.00016338,2]
[426916081,1783012637000,-159.52950513,0.00016438,2]
[426916082,1783012637000,-150.0,0.00016513,2]
[426916085,1783012637000,-151.0,0.00016938,2]
[426916083,1783012637000,-150.0,0.00016583,2]
[426916084,1783012637000,-151.0,0.00016672,2]
[426916086,1783012662000,-250.0,0.00017721,2]
[426916088,1783012736000,314.34369082,0.0001611,2]
[426916091,1783012783000,-150.0,0.0001611,2]
[426916092,1783012800000,-44.65630918,0.0001611,2]
[426916096,1783012872000,-305.34369082,0.00016513,2]
[426916097,1783012910000,-385.52,0.00016513,2]
[426916098,1783012937000,-224.6136,0.00016513,2]
[426916099,1783012965000,-228.3864,0.00016513,2]
[426916100,1783012989000,-1000.0,0.00016513,2]
[426916101,1783013010000,-151.0,0.00016513,2]
[426916103,1783013035000,-455.76,0.00016916,2]
[426916102,1783013035000,-44.4688889,0.00016513,2]
[426916104,1783013078000,-154.21,0.00017645,2]
[426916105,1783013095000,418.6711111,0.0001611,2]
[426916106,1783013135000,-90.3288889,0.0001611,2]
[426916108,1783013272000,-268.1,0.00016413,2]
[426916109,1783013292000,-231.9,0.00016413,2]
[426916110,1783013305000,-268.1,0.00017005,2]
[426916112,1783013368000,-151.0,0.00017685,2]
[426916111,1783013368000,-31.9,0.00017005,2]
[426916130,1783013431000,-2490.319889,0.00020851,2]
[426916127,1783013431000,-200.0,0.00018647,2]
[426916126,1783013431000,-174.92,0.00018527,2]
[426916125,1783013431000,-573.11,0.00018,2]
[426916124,1783013431000,-178.70226193,0.0001785,2]
[426916117,1783013431000,-151.0,0.00017721,2]
[426916122,1783013431000,-2176.18126611,0.00017761,2]
[426916120,1783013431000,-51.05145681,0.00017721,2]
[426916119,1783013431000,-115.5,0.00017721,2]
[426916118,1783013431000,-151.0,0.00017721,2]
[426916128,1783013431000,-2257.39307943,0.000188,2]
[426916123,1783013431000,-500.0,0.000178,2]
[426916131,1783013431000,-158.52723627,0.00020956,2]
[426916121,1783013431000,-300.0,0.00017721,2]
[426916132,1783013431000,-943.0,0.0002117,2]
[426916129,1783013431000,-2054.64733807,0.00019062,2]
[426916140,1783013431000,-9643.32725439,0.00022628,2]
[426916144,1783013431000,-150.0,0.00023014,2]
[426916143,1783013431000,-2894.32108393,0.00022761,2]
[426916141,1783013431000,-414.0,0.00022721,15]
[426916139,1783013431000,-190.19,0.0002257,2]
[426916142,1783013431000,-170.84,0.0002273,2]
[426916138,1783013431000,-19068.27,0.00022517,2]
[426916137,1783013431000,-886.0,0.00022204,2]
[426916134,1783013431000,-300.0,0.00021721,30]
[426916135,1783013431000,-150.0,0.00021918,2]
[426916136,1783013431000,-902.0,0.00022163,2]
[426916133,1783013431000,-1050.0,0.00021721,2]
[426916185,1783013432000,-500.0,0.00024251,2]
[426916192,1783013432000,-500.0,0.00024251,2]
[426916188,1783013432000,-500.0,0.00024251,2]
[426916194,1783013432000,-500.0,0.00024251,2]
[426916191,1783013432000,-500.0,0.00024251,2]
[426916189,1783013432000,-500.0,0.00024251,2]
[426916190,1783013432000,-500.0,0.00024251,2]
[426916186,1783013432000,-216.99524506,0.00024251,2]
[426916187,1783013432000,-500.0,0.00024251,2]
[426916195,1783013432000,-500.0,0.00024251,2]
[426916193,1783013432000,-642.37478851,0.00024251,2]
[426916196,1783013432000,-500.0,0.00024251,2]
[426916202,1783013432000,-500.0,0.00024251,2]
[426916198,1783013432000,-500.0,0.00024251,2]
[426916199,1783013432000,-500.0,0.00024251,2]
[426916201,1783013432000,-500.0,0.00024251,2]
[426916200,1783013432000,-500.0,0.00024251,2]
[426916184,1783013432000,-500.0,0.00024251,2]
[426916205,1783013432000,-500.0,0.00024251,2]
[426916206,1783013432000,-500.0,0.00024251,2]
[426916204,1783013432000,-500.0,0.00024251,2]
[426916203,1783013432000,-500.0,0.00024251,2]
[426916208,1783013432000,-500.0,0.00024251,2]
[426916207,1783013432000,-500.0,0.00024251,2]
[426916209,1783013432000,-500.0,0.00024251,2]
[426916197,1783013432000,-500.0,0.00024251,2]
[426916183,1783013432000,-381.36210644,0.00024251,2]
[426916175,1783013432000,-253.0,0.00024,2]
[426916178,1783013432000,-157.0,0.00024,2]
[426916210,1783013432000,-500.0,0.00024251,2]
[426916147,1783013432000,-151.0,0.00023323,2]
[426916146,1783013432000,-5000.0,0.00023108,2]
[426916145,1783013432000,-646.45,0.0002308,2]
[426916148,1783013432000,-151.0,0.00023323,2]
[426916151,1783013432000,-200.0,0.0002341,2]
[426916150,1783013432000,-1076.69,0.0002341,2]
[426916149,1783013432000,-510.48722197,0.00023338,2]
[426916152,1783013432000,-911.5885,0.00023569,120]
[426916154,1783013432000,-486.56900621,0.00023578,2]
[426916156,1783013432000,-500.0,0.00023578,2]
[426916158,1783013432000,-31513.25380126,0.00023669,2]
[426916166,1783013432000,-1076.69,0.00023996,2]
[426916162,1783013432000,-171.35,0.00023733,2]
[426916164,1783013432000,-152.0,0.00023821,3]
[426916160,1783013432000,-150.0,0.00023725,2]
[426916167,1783013432000,-164.61468301,0.00024,2]
[426916173,1783013432000,-320.0,0.00024,2]
[426916169,1783013432000,-155.0,0.00024,2]
[426916171,1783013432000,-166.0,0.00024,2]
[426916174,1783013432000,-151.0,0.00024,2]
[426916181,1783013432000,-500.0,0.00024182,2]
[426916176,1783013432000,-309.0,0.00024,2]
[426916179,1783013432000,-150.0,0.00024164,2]
[426916180,1783013432000,-7009.14,0.00024174,2]
[426916182,1783013432000,-187.43493805,0.00024251,2]
[426916215,1783013432000,-500.0,0.00024251,2]
[426916236,1783013432000,-500.0,0.00024251,2]
[426916212,1783013432000,-500.0,0.00024251,2]
[426916244,1783013432000,-1076.69,0.00024581,2]
[426916245,1783013432000,-20935.009139,0.00024627,2]
[426916246,1783013432000,-409.72169111,0.00024656,2]
[426916251,1783013432000,-168.09893588,0.00024911,2]
[426916213,1783013432000,-500.0,0.00024251,2]
[426916248,1783013432000,-162.14227865,0.00024911,2]
[426916249,1783013432000,-197.02098911,0.00024911,2]
[426916250,1783013432000,-159.69521954,0.00024911,2]
[426916252,1783013432000,-409.72169111,0.0002493,2]
[426916253,1783013432000,-159.0629198,0.0002493,2]
[426916255,1783013432000,-343.38,0.00024961,7]
[426916254,1783013432000,-861.94,0.00024961,7]
[426916243,1783013432000,-155.39048017,0.00024397,2]
[426916256,1783013432000,-605.09,0.00024961,7]
[426916261,1783013432000,-17352.75239295,0.0002498,2]
[426916258,1783013432000,-422.15,0.0002498,2]
[426916259,1783013432000,-1337.62,0.0002498,2]
[426916262,1783013432000,-1501.85277768,0.0002498,2]
[426916260,1783013432000,-290.25825159,0.0002498,2]
[426916263,1783013432000,-1243.66173485,0.0002498,2]
[426916264,1783013432000,-6129.30484293,0.0002498,2]
[426916266,1783013432000,-9999.99,0.0002498,2]
[426916265,1783013432000,-5187.5,0.0002498,2]
[426916268,1783013432000,-5195.78,0.0002498,2]
[426916267,1783013432000,-9999.99,0.0002498,2]
[426916269,1783013432000,-6948.94,0.0002498,2]
[426916257,1783013432000,-7009.14,0.00024961,7]
[426916241,1783013432000,-409.72169111,0.00024382,2]
[426916247,1783013432000,-4798.60194525,0.00024824,2]
[426916240,1783013432000,-24162.87768963,0.00024333,2]
[426916211,1783013432000,-500.0,0.00024251,2]
[426916217,1783013432000,-500.0,0.00024251,2]
[426916214,1783013432000,-500.0,0.00024251,2]
[426916216,1783013432000,-500.0,0.00024251,2]
[426916218,1783013432000,-500.0,0.00024251,2]
[426916221,1783013432000,-500.0,0.00024251,2]
[426916242,1783013432000,-159.0629198,0.00024382,2]
[426916219,1783013432000,-500.0,0.00024251,2]
[426916222,1783013432000,-500.0,0.00024251,2]
[426916224,1783013432000,-500.0,0.00024251,2]
[426916223,1783013432000,-453.38887273,0.00024251,2]
[426916227,1783013432000,-500.0,0.00024251,2]
[426916225,1783013432000,-500.0,0.00024251,2]
[426916220,1783013432000,-500.0,0.00024251,2]
[426916228,1783013432000,-500.0,0.00024251,2]
[426916226,1783013432000,-500.0,0.00024251,2]
[426916233,1783013432000,-500.0,0.00024251,2]
[426916237,1783013432000,-212.2845,0.00024252,2]
[426916235,1783013432000,-500.0,0.00024251,2]
[426916234,1783013432000,-350.0,0.00024251,2]
[426916239,1783013432000,-6259.26217864,0.00024282,2]
[426916231,1783013432000,-500.0,0.00024251,2]
[426916232,1783013432000,-500.0,0.00024251,2]
[426916230,1783013432000,-500.0,0.00024251,2]
[426916229,1783013432000,-500.0,0.00024251,2]
[426916238,1783013432000,-20039.6997,0.00024252,2]
[426916282,1783013433000,-500.0,0.00024999,2]
[426916283,1783013433000,-155.0,0.00025,2]
[426916284,1783013433000,-166.0,0.00025,2]
[426916279,1783013433000,-346.85882994,0.00024999,2]
[426916278,1783013433000,-500.0,0.00024999,2]
[426916277,1783013433000,-364.98486343,0.00024999,2]
[426916273,1783013433000,-2546.89,0.0002498,2]
[426916274,1783013433000,-3054.71,0.0002498,2]
[426916275,1783013433000,-150.99,0.0002498,2]
[426916270,1783013433000,-1476.8,0.0002498,2]
[426916271,1783013433000,-607.25,0.0002498,2]
[426916272,1783013433000,-3415.39,0.0002498,2]
[426916280,1783013433000,-309.85926042,0.00024999,2]
[426916276,1783013433000,-255.36159831,0.00024999,2]
[426916281,1783013433000,-500.0,0.00024999,2]
[426916289,1783013433000,-169.0,0.00025,2]
[426916287,1783013433000,-253.0,0.00025,2]
[426916285,1783013433000,-320.0,0.00025,2]
[426916301,1783013433000,-3609.0477618,0.00025476,2]
[426916297,1783013433000,-150.0,0.00025373,2]
[426916299,1783013433000,-190.19,0.00025391,2]
[426916298,1783013433000,-2500.0,0.00025376,2]
[426916296,1783013433000,-409.72169111,0.00025204,2]
[426916295,1783013433000,-1076.69,0.00025166,2]
[426916300,1783013433000,-170.9073367,0.00025397,2]
[426916291,1783013433000,-4316.641,0.00025058,9]
[426916293,1783013433000,-6259.26217859,0.00025128,2]
[426916292,1783013433000,-163.506,0.00025097,9]
[426916290,1783013433000,-500.0,0.00025057,2]
[426916288,1783013433000,-309.0,0.00025,2]
[426916286,1783013433000,-162.0,0.00025,2]
[426916294,1783013433000,-152.0,0.00025155,4]
[426916355,1783013438000,-154.80327893,0.0002615,2]
[426916352,1783013438000,-318.0,0.000261,2]
[426916350,1783013438000,-200.0,0.0002609,2]
[426916347,1783013438000,-159.0629198,0.00026026,2]
[426916349,1783013438000,-1292.71958543,0.00026079,7]
[426916348,1783013438000,-12118.264805,0.0002603,2]
[426916345,1783013438000,-500.0,0.00026009,2]
[426916343,1783013438000,-253.0,0.00026,2]
[426916344,1783013438000,-309.0,0.00026,2]
[426916354,1783013438000,-350.0,0.00026108,3]
[426916346,1783013438000,-409.72169111,0.00026026,2]
[426916356,1783013438000,-156.57701298,0.0002615,2]
[426916363,1783013438000,-193.59971704,0.0002615,2]
[426916358,1783013438000,-165.92355754,0.0002615,2]
[426916353,1783013438000,-646.0,0.000261,2]
[426916359,1783013438000,-181.65731247,0.0002615,2]
[426916360,1783013438000,-172.0604764,0.0002615,2]
[426916361,1783013438000,-164.81505765,0.0002615,2]
[426916340,1783013438000,-163.0,0.00026,2]
[426916364,1783013438000,-190.74970048,0.0002615,2]
[426916362,1783013438000,-156.21259056,0.0002615,2]
[426916365,1783013438000,-167.80929047,0.0002615,2]
[426916367,1783013438000,-524.9121218,0.0002615,2]
[426916370,1783013438000,-180.70233607,0.0002615,2]
[426916366,1783013438000,-198.15596238,0.0002615,2]
[426916357,1783013438000,-213.40109488,0.0002615,2]
[426916339,1783013438000,-10731.55516994,0.00026,2]
[426916337,1783013438000,-1142.84858913,0.00026,2]
[426916341,1783013438000,-166.0,0.00026,2]
[426916312,1783013438000,-500.0,0.00024999,2]
[426916313,1783013438000,-3337.68007642,0.00025476,2]
[426916319,1783013438000,-2275.95704172,0.00025686,2]
[426916318,1783013438000,-284.0,0.0002552,2]
[426916314,1783013438000,-26414.97676178,0.00025476,2]
[426916315,1783013438000,-409.72169111,0.00025478,2]
[426916316,1783013438000,-159.0629198,0.00025478,2]
[426916317,1783013438000,-160.26529082,0.00025499,2]
[426916320,1783013438000,-216.69616408,0.00025746,2]
[426916321,1783013438000,-160.0,0.00025749,2]
[426916323,1783013438000,-1076.69,0.00025751,2]
[426916322,1783013438000,-160.0,0.00025749,2]
[426916324,1783013438000,-409.72169111,0.00025752,2]
[426916325,1783013438000,-1142.84858913,0.000258,2]
[426916326,1783013438000,-337.27403344,0.000258,2]
[426916328,1783013438000,-10731.55516994,0.000258,2]
[426916327,1783013438000,-1018.0069946,0.000258,2]
[426916330,1783013438000,-216.6671885,0.000258,2]
[426916332,1783013438000,-1794.0,0.00025902,2]
[426916329,1783013438000,-189.77159536,0.000258,2]
[426916331,1783013438000,-3424.29888257,0.000259,2]
[426916369,1783013438000,-170.23164616,0.0002615,2]
[426916334,1783013438000,-6259.26217859,0.00025975,2]
[426916336,1783013438000,-337.27403344,0.00026,2]
[426916333,1783013438000,-220.83058827,0.00025939,30]
[426916335,1783013438000,-150.0,0.00025992,5]
[426916338,1783013438000,-1018.0069946,0.00026,2]
[426916342,1783013438000,-320.0,0.00026,2]
[426916368,1783013438000,-165.27115237,0.0002615,2]
[426916351,1783013438000,-1269.0,0.000261,2]
[426916372,1783013438000,-209.83134424,0.00026157,2]
[426916403,1783013438000,-170.9073367,0.00026397,2]
[426916405,1783013438000,-160.0,0.0002646,7]
[426916411,1783013438000,-1292.71958543,0.00026511,7]
[426916406,1783013438000,-152.0,0.0002649,5]
[426916408,1783013438000,-1142.84858913,0.000265,2]
[426916407,1783013438000,-337.27403344,0.000265,2]
[426916410,1783013438000,-10731.55516994,0.000265,2]
[426916409,1783013438000,-1018.0069946,0.000265,2]
[426916416,1783013438000,-1880.86355183,0.00026514,7]
[426916413,1783013438000,-656.0,0.00026514,5]
[426916424,1783013438000,-155.39048014,0.00026587,2]
[426916419,1783013438000,-3424.29888257,0.00026567,2]
[426916402,1783013438000,-350.0,0.00026338,3]
[426916421,1783013438000,-409.72169111,0.00026574,2]
[426916426,1783013438000,-500.0,0.00026599,2]
[426916425,1783013438000,-1000.0,0.00026599,2]
[426916427,1783013438000,-500.0,0.000266,9]
[426916430,1783013438000,-3411.34893175,0.00026684,7]
[426916429,1783013438000,-150.0,0.00026641,2]
[426916428,1783013438000,-2013.0,0.000266,2]
[426916431,1783013438000,-2000.0,0.000267,2]
[426916433,1783013438000,-1000.0,0.000267,9]
[426916432,1783013438000,-370.51794174,0.000267,2]
[426916436,1783013438000,-165.68253267,0.000267,2]
[426916371,1783013438000,-235.04298871,0.0002615,2]
[426916434,1783013438000,-203.27191311,0.000267,2]
[426916423,1783013438000,-159.0629198,0.00026574,2]
[426916401,1783013438000,-409.72169111,0.000263,2]
[426916435,1783013438000,-1967.80152656,0.000267,2]
[426916400,1783013438000,-10731.55516994,0.000263,2]
[426916404,1783013438000,-1880.86355183,0.0002646,7]
[426916374,1783013438000,-324.2845573,0.00026165,2]
[426916376,1783013438000,-217.22196177,0.00026165,2]
[426916375,1783013438000,-179.4962224,0.00026165,2]
[426916377,1783013438000,-201.11215651,0.00026165,2]
[426916379,1783013438000,-394.04197822,0.00026165,2]
[426916385,1783013438000,-336.19787176,0.00026165,2]
[426916378,1783013438000,-224.95321252,0.00026165,2]
[426916380,1783013438000,-189.44122044,0.00026165,2]
[426916381,1783013438000,-319.39043909,0.00026165,2]
[426916382,1783013438000,-175.02065904,0.00026165,2]
[426916383,1783013438000,-168.32353955,0.00026165,2]
[426916384,1783013438000,-184.52312731,0.00026165,2]
[426916373,1783013438000,-168.59260314,0.00026157,2]
[426916387,1783013438000,-186.65455616,0.00026165,2]
[426916388,1783013438000,-176.72980843,0.00026165,2]
[426916397,1783013438000,-337.27403344,0.000263,2]
[426916398,1783013438000,-1142.84858913,0.000263,2]
[426916395,1783013438000,-500.0,0.00026299,2]
[426916396,1783013438000,-500.0,0.00026299,2]
[426916393,1783013438000,-500.0,0.00026299,2]
[426916399,1783013438000,-1018.0069946,0.000263,2]
[426916392,1783013438000,-500.0,0.00026299,2]
[426916389,1783013438000,-807.4415766,0.00026185,7]
[426916390,1783013438000,-500.0,0.00026299,2]
[426916386,1783013438000,-203.30244688,0.00026165,2]
[426916391,1783013438000,-225.53895044,0.00026299,2]
[426916394,1783013438000,-577.72670713,0.00026299,2]
[426916480,1783013439000,-182.842294,0.000268,2]
[426916478,1783013439000,-182.842294,0.000268,2]
[426916474,1783013439000,-151.0,0.000268,2]
[426916471,1783013439000,-151.0,0.000268,2]
[426916473,1783013439000,-200.0,0.000268,2]